Cogmind - Beta 16 @@@ ROGUE MODE // 2026.01.20 @ 11:18:27 Player: Tubby Watkins Result: Self-destructed Performance ------------- Evolutions (1) 500 Regions Visited (3) 600 Robots Destroyed (38) 190 Value Destroyed (716) 716 Prototype IDs (2) 40 Alien Tech Used (0) 0 Bonus (-148) -148 TOTAL SCORE: 1898 Bonus ------- Follower Combat Kills 57 Friendly Fire -205 Cogmind --------- Core Integrity 275/400 Matter 210/300 Energy 250/250 System Corruption 0% Temperature Cool (36) Movement Core (1000) Ox19 Location -9/Materials Parts ------- > --- POWER (1) -------- Ion Engine > --- PROPULSION (3) --- (None) > --- UTILITY (3) ------ High-capacity Storage Unit Power Shielding Hardened Light Armor Plating > --- WEAPON (2) ------- Light Cannon Rocket Launcher > --- INVENTORY (20) --- Ion Engine Ion Engine Light Treads Light Treads Flight Unit Flight Unit Small Storage Unit Improved Terrain Scanner Assault Rifle Light Assault Rifle Light Assault Rifle Light Assault Rifle Mining Laser Hammer Peak State ------------ > --- POWER ------------ Ion Engine > --- PROPULSION ------- Light Treads Light Treads Light Treads > --- UTILITY ---------- High-capacity Storage Unit Power Shielding Hardened Light Armor Plating > --- WEAPON ----------- Light Cannon Rocket Launcher > --- INVENTORY -------- Ion Engine Ion Engine Light Treads Light Treads Flight Unit Flight Unit Small Storage Unit Improved Terrain Scanner Assault Rifle Light Assault Rifle Light Assault Rifle Light Assault Rifle Mining Laser Hammer [Rating: 12] Favorites ----------- Power Ion Engine Engine Ion Engine Propulsion Light Treads Treads Light Treads Leg Aluminum Leg Utility Small Storage Unit Device Improved Terrain Scanner Storage Small Storage Unit Protection Power Shielding Weapon Light Cannon Energy Gun EM Pulse Gun Ballistic Gun Light Assault Rifle Ballistic Cannon Light Cannon Launcher Rocket Launcher Special Weapon Mining Laser Build | -11 -10 -10 -9 ------- Run | Yrd Mat Min Mat Slots Evolved 2 | . . . 2 Power . | . . . . Propulsion 1 | . . . 1 Utility 1 | . . . 1 Weapon . | . . . . Parts Attached 25 | 7 10 3 5 Power 3 | 1 1 . 1 Engine 3 | 1 1 . 1 Core . | . . . . Reactor . | . . . . Propulsion 8 | 2 4 . 2 Treads 5 | . 3 . 2 Leg 3 | 2 1 . . Wheel . | . . . . Hover . | . . . . Flight . | . . . . Utility 6 | 2 2 1 1 Device 1 | 1 . . . Storage 3 | 1 1 1 . Processor . | . . . . Hackware . | . . . . Protection 2 | . 1 . 1 Artifact . | . . . . Weapon 8 | 2 3 2 1 Energy Gun 1 | 1 . . . Energy Cannon . | . . . . Ballistic Gun 4 | 1 2 . 1 Ballistic Cannon 1 | . 1 . . Launcher 1 | . . 1 . Special Weapon 1 | . . 1 . Impact Weapon . | . . . . Slashing Weapon . | . . . . Piercing Weapon . | . . . . Special Melee Weapon . | . . . . Unidentified Prototypes . | . . . . Parts Lost 2 | . . . 2 Power . | . . . . Propulsion 2 | . . . 2 Utility . | . . . . Weapon . | . . . . Highest Loss Streak 2 | . . . 2 To Critical Strikes . | . . . . Average Backups 7 | 2 7 7 9 Power 1 | . 1 1 1 Propulsion 2 | 1 2 2 3 Utility . | . . 1 1 Weapon 3 | . 3 3 4 Tool/Special . | . . . . Unused Backups 14 | . 6 1 7 Power 3 | . 2 . 1 Propulsion 6 | . 2 1 3 Utility . | . . . . Weapon 5 | . 2 . 3 Tool/Special . | . . . . Average Slot Usage (%) 98 | . 100 100 89 Engine 13 | . 14 14 11 Treads 23 | . 19 28 29 Leg 4 | . 8 . . Device 6 | . 11 . . Storage 13 | . 14 14 11 Protection 8 | . 2 14 15 Energy Gun 1 | . 3 . . Ballistic Gun 12 | . 18 4 9 Ballistic Cannon 9 | . 6 14 11 Launcher 3 | . . 8 1 Peak Build Rating 12 | 9 9 8 12 Average Rating 8 | 5 8 7 9 On Entrance 6 | . 9 7 8 Avg Prop Armor Cover (%) . | . . . . Naked Turns . | . . . . Heaviest Build 58 | 14 48 18 58 Greatest Support 60 | 20 40 40 60 Greatest Overweight (x) 4 | 4 1 . . Average Overweight (x) . | . . . . Largest Inventory Capacity 25 | 8 20 25 20 Average Capacity 9 | 7 8 8 14 Most Carried 14 | 4 8 8 14 Average Carried 7 | 2 7 7 9 Final Capacity 20 | 8 8 8 20 Final Carried 14 | 4 7 8 14 Class Distribution -------------------- 100% | Mutant Dominant Class ---------------- Mutant | -10/Materials Mutant | -10/Mines Mutant | -9/Materials Resources | -11 -10 -10 -9 ----------- Run | Yrd Mat Min Mat Matter Collected 879 | 231 194 162 292 Remotely . | . . . . Salvage Created 867 | 41 378 81 367 Parts 63 | 6 23 8 26 Haulers Intercepted 2 | . . . 2 Recyclers Shooed 2 | . . . 2 Parts Field Recycled . | . . . . Retrieved Matter . | . . . . Parts Self-Destructed . | . . . . Prevented . | . . . . Parts Restored . | . . . . Kills | -11 -10 -10 -9 ------- Run | Yrd Mat Min Mat Combat Hostiles Destroyed 24 | . 8 7 9 Guns 9 | . 8 1 . Cannons 7 | . . 2 5 AOE 8 | . . 4 4 Classes Destroyed 9 | 1 3 1 4 Worker 1 | . . . 1 Tunneler 4 | 2 . . 2 Hauler 2 | . . . 2 Recycler 2 | . . . 2 Operator 3 | . 2 . 1 Watcher 1 | . 1 . . Swarmer 10 | . . 5 5 Grunt 13 | . 8 2 3 Sentry 1 | . . . 1 Thug 1 | . . 1 . Best Kill Streak 6 | 2 2 3 6 Combat Bots Only 3 | . 2 3 3 Max Kills in Single Turn 3 | 1 1 3 2 Gunslinging . | . . . . Exploded 2 | . . 2 1 Melee . | . . . . Uniques/NPCs Destroyed . | . . . . Combat | -11 -10 -10 -9 -------- Run | Yrd Mat Min Mat Hostile Shots Fired 135 | . 31 24 80 Missed 37 | . 6 9 22 Hits 98 | . 25 15 58 Melee 4 | . . . 4 Projectile 94 | . 25 15 54 Critical Strikes 1 | . . . 1 Damage Taken 1259 | . 307 162 790 Core 235 | . 57 53 125 Absorbed by Shields . | . . . . Redirected to Shielding 16 | . . . 16 Core Remaining (%) 78 | 100 . 56 . Volleys Fired 91 | 6 29 20 36 Largest 2 | 2 2 2 2 Hottest 100 | 60 60 100 63 Shots Fired 171 | 12 58 29 72 Gun 104 | 12 57 6 29 Cannon 45 | . 1 8 36 Launcher 11 | . . 4 7 Special 11 | . . 11 . Kinetic 131 | 6 46 14 65 Thermal 11 | . . 11 . Explosive 11 | . . 4 7 Electromagnetic 18 | 6 12 . . Robot Hit Streak 10 | 3 10 7 5 Robot Miss Streak 5 | 1 2 2 5 Penetration Max . | . . . . Secondary Targets . | . . . . Shots Hit Robots 97 | 7 40 11 39 Core Hits 54 | 3 21 8 22 Critical Kills 1 | . 1 . . Critical Parts Destroyed . | . . . . Critical Strikes 2 | . 1 1 . Destroy 1 | . 1 . . Blast 1 | . . 1 . Melee Attacks . | . . . . Impact . | . . . . Slashing . | . . . . Piercing . | . . . . Sneak Attacks . | . . . . Combat Hostiles . | . . . . Follow-up Attacks . | . . . . Damage Inflicted 2286 | 73 383 539 1291 Guns 648 | 73 367 39 169 Cannons 617 | . 16 149 452 Explosions 1021 | . . 351 670 Melee . | . . . . Ramming . | . . . . Kinetic 1084 | 31 244 188 621 Thermal . | . . . . Explosive 1021 | . . 351 670 Electromagnetic 181 | 42 139 . . Impact . | . . . . Slashing . | . . . . Piercing . | . . . . Highest Corruption . | . . . . Average Corruption . | . . . . Corruption Purged . | . . . . Corruption Blocked . | . . . . Overload Shots . | . . . . Overflow Damage 74 | . . 12 62 Projectiles . | . . . . Explosions 74 | . . 12 62 Melee . | . . . . Knockbacks 5 | . . 2 3 Impact . | . . . . Kinetic 5 | . . 2 3 Secondary . | . . . . Self-Inflicted Damage 128 | . . 36 92 Shots 5 | . . 2 3 Rammed . | . . . . Targets Rammed . | . . . . Kicked . | . . . . Crushed . | . . . . Highest Temperature 114 | 20 40 42 114 Average Temperature 25 | 15 13 14 46 Received Heat Transfer 306 | . 150 12 144 Siege Activations . | . . . . Martial Activations . | . . . . Shielding Activations . | . . . . Robots Disrupted . | . . . . Combat Hostiles . | . . . . Robots Corrupted . | . . . . Combat Hostiles . | . . . . Parts Fried . | . . . . Impact Corruptions . | . . . . Robots Melted . | . . . . Combat Hostiles . | . . . . Parts Melted . | . . . . Heat Transferred . | . . . . Parts Sabotaged . | . . . . Parts Stolen . | . . . . Parts Stripped . | . . . . Power Chain Reactions . | . . . . Alert | -11 -10 -10 -9 ------- Run | Yrd Mat Min Mat Maximum Alert Level 1 | . . . 1 Low Security (%) 99 | 100 100 100 98 Level 1 . | . . . 1 Level 2 . | . . . . Level 3 . | . . . . Level 4 . | . . . . Level 5 . | . . . . High Security . | . . . . Max Security . | . . . . Peak Influence 213 | 5 72 139 213 Initial . | . . . . Average 29 | . 11 48 56 Influence Increases 884 | 10 243 283 348 Destroy 0b10 Robot/C 540 | . 160 200 180 Destroy 0b10 Robot/NC 65 | 10 15 . 40 Destroy Leader 96 | . 42 20 34 Allied During Kill 14 | . . 14 . Successful Hack 22 | . 11 . 11 Disable Machine 30 | . . . 30 Destroy Structure 72 | . . 34 38 Lose Combat Pursuer 45 | . 15 15 15 Influence Decreases 681 | 10 243 283 145 Time Decay 661 | 10 243 283 125 Lost Part 20 | . . . 20 Squads Dispatched 5 | . 4 . 1 Investigation . | . . . . Extermination . | . . . . Reinforcement 5 | . 4 . 1 Assault . | . . . . Garrison . | . . . . Intercept . | . . . . Searches Triggered . | . . . . Construction Impeded 1 | . . . 1 Haulers Reinforced . | . . . . Active Scanning Responses . | . . . . Cargo Convoy Interrupts . | . . . . Stealth | -11 -10 -10 -9 --------- Run | Yrd Mat Min Mat Distress Signals 2 | . . . 2 Communications Jammed . | . . . . Distress Signals . | . . . . Times Spotted 47 | . 15 13 19 Peak Tracking Total 6 | . 5 3 6 Tactical Retreats 3 | . 1 1 1 Traps | -11 -10 -10 -9 ------- Run | Yrd Mat Min Mat Traps Triggered 2 | . 1 . 1 Indirectly . | . . . . Trap Hack Attempts . | . . . . Triggered . | . . . . Disarmed . | . . . . Reprogrammed . | . . . . Reused . | . . . . Traps Extracted . | . . . . Installed . | . . . . Triggered . | . . . . Machines | -11 -10 -10 -9 ---------- Run | Yrd Mat Min Mat Machines Disabled 2 | . . . 2 Max in Single Turn 1 | . . . 1 Machines Repaired . | . . . . Machines Dismantled . | . . . . Machines Sabotaged . | . . . . Overloaded Fab Kills . | . . . . Hacking | -11 -10 -10 -9 --------- Run | Yrd Mat Min Mat Machines Accessed 7 | . 4 . 3 Terminals 7 | . 4 . 3 Fabricators . | . . . . Repair Stations . | . . . . Recycling Units . | . . . . Scanalyzers . | . . . . Garrison Access . | . . . . Total Hacks 15 | . 9 . 6 Successful 7 | . 4 . 3 Failed 8 | . 5 . 3 Catastrophic 2 | . 2 . . Database Lockouts . | . . . . Manual 9 | . 6 . 3 Terminals 15 | . 9 . 6 Fabricators . | . . . . Repair Stations . | . . . . Recycling Units . | . . . . Scanalyzers . | . . . . Garrison Access . | . . . . Terminal Hacks 7 | . 4 . 3 Record 1 | . 1 . . Robot Analysis 1 | . 1 . . Prototype ID Bank 1 | . . . 1 Branch Access Points 1 | . 1 . . Emergency Access Points 1 | . 1 . . Transport Status 1 | . . . 1 Hauler Manifests 1 | . . . 1 Fabricator Hacks . | . . . . Repair Station Hacks . | . . . . Recycling Unit Hacks . | . . . . Scanalyzer . | . . . . Garrison Access Hacks . | . . . . Unauthorized Hacks . | . . . . Terminals . | . . . . Fabricators . | . . . . Repair Stations . | . . . . Recycling Units . | . . . . Scanalyzers . | . . . . Garrison Access . | . . . . Data Cores Recovered 1 | . . . 1 Used . | . . . . Hacking Detections 4 | . 2 . 2 Full Trace Events 1 | . . . 1 Feedback Events . | . . . . Feedback Blocked . | . . . . Robot Schematics Acquired . | . . . . Robots Built . | . . . . Authchips . | . . . . Time . | . . . . Total Robot Build Rating . | . . . . Part Schematics Acquired . | . . . . Parts Built . | . . . . Authchips . | . . . . Time . | . . . . Total Part Build Rating . | . . . . Part Studies Acquired . | . . . . Parts Repaired . | . . . . Time . | . . . . Parts Recycled . | . . . . Recycled Matter . | . . . . Retrieved Matter . | . . . . Retrieved Components . | . . . . Parts Scanalyzed . | . . . . Part Schematics Acquired . | . . . . Parts Damaged . | . . . . Bothacking | -11 -10 -10 -9 ------------ Run | Yrd Mat Min Mat Used RIF Installer . | . . . . Robots Hacked . | . . . . Non-combat . | . . . . Combat . | . . . . Robot Hacks Applied . | . . . . Relay Couplers Released . | . . . . Fabnet Peak Effective % . | . . . . Robots Rewired . | . . . . Allies Hacked . | . . . . Hacks Repelled . | . . . . Allies | -11 -10 -10 -9 -------- Run | Yrd Mat Min Mat Total Allies 2 | . . 2 . Largest Group 2 | . . 2 . Highest-Rated Group 46 | . . 46 . Highest-Rated Ally 31 | . . 31 . Total Orders . | . . . . Ally Attacks 14 | . . 14 . Total Damage 233 | . . 233 . Kills 5 | . . 5 . Allies Corrupted . | . . . . Allies Melted . | . . . . Intel | -11 -10 -10 -9 ------- Run | Yrd Mat Min Mat Active Infowar (turns) 1215 | 16 1199 . . Terrain 1215 | 16 1199 . . Robot Analysis Total 1 | . 1 . . Derelict Logs Recovered 1 | . . 1 . Drone Launches . | . . . . Drone Recoveries . | . . . . Exploration | -11 -10 -10 -9 ------------- Run | Yrd Mat Min Mat Turns Passed 2840 | 96 1443 882 419 Spaces Moved 1564 | 52 837 493 182 Core 9 | 9 . . . Treads 1237 | . 562 493 182 Legs 318 | 43 275 . . Wheels . | . . . . Hover . | . . . . Flight . | . . . . Fastest Speed 50 | 50 120 160 160 Average Speed 151 | 124 147 160 160 Slowest Speed 250 | 250 240 160 160 Overloaded Moves . | . . . . Propulsion Burnouts . | . . . . Robots Hopped . | . . . . Potential Cave-ins . | . . . . Cave-ins Triggered . | . . . . Exploration Rate (%) 56 | 5 96 97 26 Regions Visited 3 Branch Regions 1 Pre-discovered Areas 1 | . . 1 . Known Exits Taken 1 | . 1 . . Unknown Exits Taken 2 | 1 . 1 . Scrap Searched 1 | . . 1 . Spaces Dug . | . . . . Terrain Destroyed 88 | . . 52 36 Melee . | . . . . Projectile 1 | . . 1 . AOE 87 | . . 51 36 Terrain Rammed . | . . . . Walls Destroyed . | . . . . Machines Disabled . | . . . . Actions | -11 -10 -10 -9 --------- Run | Yrd Mat Min Mat Total 1845 | 69 1007 533 236 Wait 120 | 1 104 10 5 Move 1561 | 51 836 492 182 Hop . | . . . . Pick Up 21 | 4 12 2 3 Fast Attach 9 | 7 . . 2 Attach . | . . . . Detach . | . . . . Swap 27 | . 12 7 8 Drop 16 | . 14 2 . Fire 91 | 6 29 20 36 Melee . | . . . . Ram . | . . . . Kick . | . . . . Crush . | . . . . Escape Stasis . | . . . . Rewire . | . . . . Trap . | . . . . Miscellaneous . | . . . . Route ------- -11/Scrapyard -10/Materials (discovered 4 exits: *Mat x3 / *Min) -10/Mines (discovered 3 exits: *Mat x2 / [*Exi]) -9/Materials History --------- Turn | Location | Event 12 | -11/Scrapyard | Discovered new exit (range 16) 97 | -11/Scrapyard | Entered Materials 315 | -10/Materials | Build established: Mutant 628 | -10/Materials | Discovered new exit (range 6) 811 | -10/Materials | Discovered new exit (range 15) 1026 | -10/Materials | Identified exit to Mines 1037 | -10/Materials | Discovered new exit (range 16) 1377 | -10/Materials | Discovered new exit (range 16) 1540 | -10/Materials | Entered Mines 1779 | -10/Mines | Excavation squad dispatched 1779 | -10/Mines | A large section of the Mines collapsed 1939 | -10/Mines | Discovered new exit (range 5) 2116 | -10/Mines | Deemed a non-threat by the Exiles lab entrance 2116 | -10/Mines | Discovered new exit (range 5) 2231 | -10/Mines | Discovered new exit (range 11) 2422 | -10/Mines | Entered Materials 2422 | -9/Materials | Evolved 2 slots: Propulsion x1, Utility x1 2841 | -9/Materials | Self-destructed Last Messages --------------- 02829_ T-07 Excavator destroyed. 02829_ S-10 Pest destroyed. 02831_ R-06 Scavenger inserts Com. Wheel into recycling unit. 02831_ Lgt. Treads severed. 02831_ U-05 Engineer builds a Wall. 02832_ Recycling unit begins recycling process. 02832_ S-10 Pest knocked back. 02832_ Destroyed Flight Unit. 02832_ S-10 Pest destroyed. 02834_ U-05 Engineer lays Concrete. 02834_ R-06 Scavenger inserts Rocket Launcher into recycling unit. 02835_ S-10 Pest destroyed. 02835_ ALERT: Construction progress impeded, dispatching reinforcements to local area. 02836_ Lgt. Treads destroyed. 02838_ Destroyed Welding Torch. 02838_ A-02 Transporter destroyed. 02839_ Lgt. Treads destroyed. 02840_ K-01 Serf collects debris. Map ----- +----------------------------------------------------+ | ?????????????????????????????????????????????????? | | ?????????????????????????????????????????????????? | | ?????????????????????????????????????????????????? | | ?????????????????????????????????????????????????? | | ?????????????????????????????????????????????????? | | ?????????????????????????????????????????????????? | | ?????????????????????????????????????????????????? | | ?????????????????????????????????????????????????? | | ?????????????????????????????????????????????????? | | ?????????????????????????????????????????????????? | | ?????????????????????????????????????????????????? | | ?????????????????????????????????????????????????? | | ?????????????????????????????????????????????????? | | ??????????????????????????"??????????????????????? | | ??????????????????????????"??????????????????????? | | ?????????????????????????? ?????????????????????? | | ?????####???????????????##+#######???????????????? | | ????? #???????????????# #???????????????? | | ???"? #???????????????# #?? ???????????? | | ???"? #????????######## "" ## s#???????????? | | ??""? #????????# #%= s #???????????? | | #????????# s #???????????? | | """ #????????# "" s #???????????? | | ?""" #????????# Y" #???????????? | | ??"" #????????# "" #???????????? | | ??? ### ##???# @ #???#??????????? | | ####/################## l #?????????? | | ! [ ur = #?????????? | | %! [[[ +?????????? | | k ![%[= T #?????????? | | ## ######### #[ << #?????????? | | ## #???????#### << ! #?????????? | | #% """ #??????????# << #?????????? | | # #??????????# #?????????? | | # #??????????# m #?????????? | | # """" #??????????# #?????????? | | # """" #??????????# #?????????? | | # """" #??????????# ##### #?????????? | | # #??????????# #????? ???????????? | | # #??????????? #??????????????????? | | ## """" #??????????? #??????????????????? | | """" #??????????? #??????????????????? | | """" #??????????? ???????????????????? | | #?????????????????????????????????? | | #?????????????????????????????????? | | ### """" #?????????????????????????????????? | | ??# """" #?????????????????????????????????? | | ??# """" #?????????????????????????????????? | | ??/ ??? ??????????????????????????????????? | | ??# ??????????????????????????????????????? | +----------------------------------------------------+ Best States ------------- Heat Dissipation 28 Energy Generation 10 Energy Capacity 250 Matter Stores 300 Matter Capacity 300 Sight Range 16 Terrain Scan Range 16 Terrain Scan Density 10 Armor Coverage 150 Power Shielding 33 Evasion (%) 55 Recoil Reduction 3 Item Schematics ----------------- None Robot Schematics ------------------ None Fabricated ------------ Nothing Repaired ---------- Nothing Studied --------- None Alien Tech Used ----------------- None Achievements -------------- None Challenges ------------ None Game ------ Seed EnergyDisruptionFalx Manual? 0 Play Time 00:27:47 Cumulative 8.0 hours Start 2026.01.20 @ 10:41:59 End 2026.01.20 @ 11:18:27 Sessions 3 Manual Loads 0 Difficulty Rogue Special Mode None Game No. 13 Rogue 13 Adventurer 0 Explorer 0 Win Type - Total 0 Types 0/0/0/0/0/0/0/0/0/0 Lore% 7 Gallery% 11 Achievement% 11 Wizard Run 0 Options --------- Layout 0 ASCII 1 Keyboard 1 Movement Vi Keybinds 0 Fullscreen 1 Font 20/X11 Map View 66x50 Zoom Use 2% Tactical HUD 1 Map Filters NONE Filters NONE Steam 1 RUN: ba0cd437-f70a-4e93-915d-77d4c4d01486